Cogmind - Beta 16.1 @@@ ROGUE MODE // 2026.03.07 @ 14:58:10 Player: StaticNoob Result: Destroyed by 69-Q0P(z) with Makeshift Axe Performance ------------- Evolutions (4) 2000 Regions Visited (7) 1400 Robots Destroyed (68) 340 Value Destroyed (2005) 2005 Prototype IDs (11) 220 Alien Tech Used (0) 0 Bonus (1303) 1303 TOTAL SCORE: 7268 Bonus ------- High Alert Combat Kills 116 Follower Combat Kills 87 Registered with UFD 300 Met Optimus in HQ 500 Met Imprinter 300 Cogmind --------- Core Integrity 0/850 Matter 58/300 Energy 158/170 System Corruption 6% Temperature Cool (0) Movement Walking (136) Location -6/Zion Parts ------- > --- POWER (1) -------- Makeshift Power Source > --- PROPULSION (5) --- Titanium Leg Makeshift Leg Makeshift Leg > --- UTILITY (7) ------ Advanced Visual Processing Unit Experimental Terrain Scan Processor Weapon Mount Weapon Cycler Recalibrator > --- WEAPON (2) ------- Phasing Sabre > --- INVENTORY (5) ---- Makeshift Power Source Matter Compressor (250) Matter Compressor (250) Phase Shifter Mini Drone Bay (3/3) Peak State ------------ > --- POWER ------------ Light Angular Momentum Engine > --- PROPULSION ------- Armored Huge Wheel Improved Gravmag System Gravmag Array > --- UTILITY ---------- Advanced Heat Sink Large Storage Unit Experimental Terrain Scan Processor Melee Analysis Suite Weapon Mount Cloaking Device Improved Medium Armor Plating > --- WEAPON ----------- Bore Cannon Phasing Sabre > --- INVENTORY -------- Medium Battery Matter Compressor Matter Compressor IFF Parser ECM Suite Phase Shifter Mobile Refinery Mk. CCLXVII Mini Drone Bay Hacking Drone Bay Slug Cannon Long-range Missile Launcher RU-N14's Throwing Claymores RU-N14's Throwing Claymores RU-N14's Throwing Claymores RU-N14's Throwing Claymores [Rating: 78] Favorites ----------- Power Light Angular Momentum Engine Engine Light Angular Momentum Engine Power Core Light Fission Core Propulsion Gravmag Array Treads Light Treads Leg Makeshift Leg Wheel Subdweller Monowheel Hover Unit Gravmag Array Flight Unit Flight Unit Utility Experimental Terrain Scan Processor Device Weapon Mount Storage Small Storage Unit Processor Experimental Terrain Scan Processor Protection Improved Medium Armor Plating Weapon Medium Laser Energy Gun Medium Laser Energy Cannon Cooled Plasma Cannon Ballistic Gun Battle Rifle Ballistic Cannon Magnetic Acceleration Cannon Launcher Grenade Launcher Special Weapon RU-N14's Throwing Claymores Impact Weapon Powered Hammer Slashing Weapon Phasing Sabre Build | -11 -10 -10 -9 -6 -6 -6 -6 ------- Run | Yrd Mat Sub Scr Fac Low Low Zio Slots Evolved 8 | . . . . 8 . . . Power . | . . . . . . . . Propulsion 3 | . . . . 3 . . . Utility 5 | . . . . 5 . . . Weapon . | . . . . . . . . Parts Attached 72 | 6 1 12 2 21 4 1 25 Power 9 | 1 . 2 . 2 . 1 3 Engine 8 | 1 . 2 . 1 . 1 3 Core 1 | . . . . 1 . . . Reactor . | . . . . . . . . Propulsion 20 | 2 . 2 2 3 . . 11 Treads 4 | 2 . . . . . . 2 Leg 6 | . . . . . . . 6 Wheel 3 | . . 2 . . . . 1 Hover 5 | . . . . 3 . . 2 Flight 2 | . . . 2 . . . . Utility 22 | 1 1 2 . 12 3 . 3 Device 12 | . 1 1 . 8 . . 2 Storage 3 | 1 . . . 1 1 . . Processor 5 | . . . . 3 1 . 1 Hackware . | . . . . . . . . Protection 2 | . . 1 . . 1 . . Artifact . | . . . . . . . . Weapon 21 | 2 . 6 . 4 1 . 8 Energy Gun 4 | 2 . 2 . . . . . Energy Cannon 1 | . . . . 1 . . . Ballistic Gun 5 | . . 3 . 1 . . 1 Ballistic Cannon 3 | . . . . 1 . . 2 Launcher 2 | . . 1 . . 1 . . Special Weapon 4 | . . . . . . . 4 Impact Weapon 1 | . . . . 1 . . . Slashing Weapon 1 | . . . . . . . 1 Piercing Weapon . | . . . . . . . . Special Melee Weapon . | . . . . . . . . Unidentified Prototypes 1 | . . . . . . . 1 Parts Lost 35 | . . 8 . 4 3 1 19 Power 5 | . . 2 . 1 1 . 1 Propulsion 15 | . . 2 . 2 . 1 10 Utility 8 | . . 1 . 1 1 . 5 Weapon 7 | . . 3 . . 1 . 3 Highest Loss Streak 9 | . . 5 . 3 2 1 9 To Critical Strikes . | . . . . . . . . Average Backups 7 | . 3 6 4 4 8 8 12 Power . | . . . . . . . . Propulsion . | . . . . . . . . Utility 5 | . 1 3 3 2 6 7 8 Weapon 2 | . 1 1 1 2 1 1 3 Tool/Special . | . . . . . . . . Unused Backups 15 | . . 1 2 3 . . 9 Power . | . . . . . . . . Propulsion 1 | . . 1 . . . . . Utility 10 | . . . 2 . . . 8 Weapon 4 | . . . . 3 . . 1 Tool/Special . | . . . . . . . . Average Slot Usage (%) 82 | . 97 98 80 67 79 79 78 Engine 7 | . 14 13 8 4 2 4 5 Treads 7 | . 28 21 . . . . 2 Wheel 3 | . . 5 16 . . . . Hover 7 | . . . . 13 20 14 10 Flight 1 | . . . 10 1 . . . Device 16 | . 11 5 14 25 27 20 19 Storage 8 | . 14 14 14 . 5 6 5 Processor 6 | . . . . 10 7 13 12 Protection 3 | . . 8 . . 3 6 4 Energy Gun 7 | . 28 21 8 . . . . Ballistic Gun 2 | . . 4 8 1 . . . Ballistic Cannon 2 | . . . . 1 3 5 4 Impact Weapon 1 | . . . . 3 6 6 1 Slashing Weapon 1 | . . . . . . . 4 Peak Build Rating 78 | 6 7 13 13 77 74 68 78 Average Rating 39 | 4 6 9 10 57 67 64 63 On Entrance 29 | . 6 7 13 7 72 68 64 Avg Prop Armor Cover (%) 8 | . . . 5 . . . 8 Naked Turns . | . . . . . . . . Heaviest Build 55 | 12 13 19 17 31 49 53 55 Greatest Support 77 | 40 40 40 40 50 50 50 77 Greatest Overweight (x) 11 | 3 . . 1 1 . 1 11 Average Overweight (x) . | 1 . . . . . . 1 Largest Inventory Capacity 15 | 8 8 8 8 8 15 15 15 Average Capacity 10 | 7 8 8 8 5 14 15 14 Most Carried 15 | 1 5 8 6 6 9 10 15 Average Carried 7 | . 3 6 4 4 8 8 13 Final Capacity 15 | 8 8 8 8 5 15 15 5 Final Carried 10 | 1 5 6 4 5 8 10 5 Class Distribution -------------------- 60% | Mutant 21% | Scavenger-Mutant 13% | Derelict-Mutant 3% | Infiltrator-Mutant Dominant Class ---------------- Mutant | -10/Materials Mutant | -10/Subcaves Scavenger-Mutant | -9/Scraptown Mutant | -6/Factory Mutant | -6/Lower Caves Mutant | -6/Lower Caves Derelict-Mutant | -6/Zion Resources | -11 -10 -10 -9 -6 -6 -6 -6 ----------- Run | Yrd Mat Sub Scr Fac Low Low Zio Matter Collected 2486 | 170 67 188 174 711 361 457 358 Remotely . | . . . . . . . . Salvage Created 2148 | 21 99 297 . 884 140 183 524 Parts 116 | 3 6 26 . 23 2 7 49 Haulers Intercepted 2 | . . . . 2 . . . Recyclers Shooed . | . . . . . . . . Parts Field Recycled . | . . . . . . . . Retrieved Matter . | . . . . . . . . Parts Self-Destructed 13 | . . . . . 2 9 2 Prevented 2 | . . . . . 2 . . Parts Restored . | . . . . . . . . Kills | -11 -10 -10 -9 -6 -6 -6 -6 ------- Run | Yrd Mat Sub Scr Fac Low Low Zio Combat Hostiles Destroyed 36 | . 3 8 . 9 4 7 5 Melee 3 | . . . . 1 . . 2 Guns 11 | . 3 7 . 1 . . . Cannons 5 | . . . . 2 . 2 1 AOE 11 | . . 1 . . 3 5 2 Classes Destroyed 18 | 1 1 1 . 8 2 3 2 Builder 1 | . . . . 1 . . . Tunneler 1 | 1 . . . . . . . Hauler 2 | . . . . 2 . . . Recycler 2 | . . . . 2 . . . Operator 1 | . . . . 1 . . . Swarmer 4 | . . . . . . 4 . Cutter 2 | . . . . 2 . . . Saboteur 1 | . . . . 1 . . . Grunt 9 | . 3 . . 4 . 2 . Duelist 1 | . . . . 1 . . . Sentry 1 | . . . . 1 . . . Hunter 1 | . . . . . 1 . . Programmer 1 | . . . . . . 1 . Subdweller 8 | . . 8 . . . . . Zionite 25 | . . . . . . . 25 Samaritan 1 | . . . . . . 1 . Tinkerer 5 | . . . . . . . 5 Thug 1 | . . . . . . . 1 Butcher 2 | . . . . . 2 . . Mutant 5 | . . . . . 1 . 4 Best Kill Streak 13 | 1 2 2 . 4 2 6 13 Combat Bots Only 6 | . 2 2 . 4 2 6 3 Max Kills in Single Turn 4 | 1 1 1 . 1 1 4 2 Gunslinging . | . . . . . . . . Exploded 4 | . . 1 . . 1 4 1 Melee 1 | . . . . 1 . . 1 Uniques/NPCs Destroyed . | . . . . . . . . Combat | -11 -10 -10 -9 -6 -6 -6 -6 -------- Run | Yrd Mat Sub Scr Fac Low Low Zio Hostile Shots Fired 491 | . 24 56 . 159 21 34 197 Missed 171 | . 5 18 . 74 7 12 55 Hits 320 | . 19 38 . 85 14 22 142 Melee 20 | . . . . 7 . . 13 Projectile 300 | . 19 38 . 78 14 22 129 AOE 2 | . . 1 . 1 . . . Critical Strikes 13 | . . 1 . 5 1 . 6 Part Disruptions 3 | . . . . . . . 3 Damage Taken 5160 | . 245 919 . 1363 218 325 2090 Core 1112 | . 68 180 . 438 17 48 361 Absorbed by Shields . | . . . . . . . . Core Remaining (%) 50 | 100 . . . . . . . Volleys Fired 216 | 1 19 65 . 33 20 17 61 Largest 2 | 2 2 2 . 2 1 1 1 Hottest 105 | 100 100 100 . 105 43 44 40 Shots Fired 270 | 2 38 96 . 36 20 16 62 Gun 142 | 2 38 92 . 3 . . 7 Cannon 94 | . . . . 33 7 12 42 Launcher 21 | . . 4 . . 13 4 . Special 13 | . . . . . . . 13 Kinetic 113 | . . 46 . 6 . 12 49 Thermal 123 | 2 38 46 . 30 7 . . Explosive 34 | . . 4 . . 13 4 13 Electromagnetic . | . . . . . . . . Robot Hit Streak 21 | 2 4 21 . 8 10 13 12 Robot Miss Streak 3 | . 3 2 . 1 1 1 2 Penetration Max . | . . . . . . . . Secondary Targets 1 | . 1 . . . . . . Max Gunslinging Chain 1 | . 1 . . . . . . Shots Hit Robots 210 | 2 21 53 . 37 10 13 74 Core Hits 94 | 1 8 18 . 8 6 12 41 Critical Kills 5 | . . . . 1 . . 4 Critical Parts Destroyed 8 | . . . . 5 . . 3 Critical Strikes 23 | . 2 2 . 6 . . 13 Burn 4 | . 2 2 . . . . . Destroy 7 | . . . . . . . 7 Smash 6 | . . . . 6 . . . Sever 6 | . . . . . . . 6 Melee Attacks 75 | . . . . 39 2 . 34 Impact 41 | . . . . 39 2 . . Slashing 34 | . . . . . . . 34 Piercing . | . . . . . . . . Sneak Attacks 5 | . . . . 5 . . . Combat Hostiles . | . . . . . . . . Follow-up Attacks . | . . . . . . . . Damage Inflicted 8175 | 25 291 988 . 1630 746 884 3611 Guns 1329 | 25 291 838 . 44 . . 131 Cannons 1207 | . . . . 184 . 357 666 Explosions 2690 | . . 150 . . 695 527 1318 Melee 2481 | . . . . 1402 51 . 1028 Ramming . | . . . . . . . . Kinetic 1555 | . . 357 . 44 . 357 797 Thermal 981 | 25 291 481 . 184 . . . Explosive 2690 | . . 150 . . 695 527 1318 Electromagnetic . | . . . . . . . . Impact 1453 | . . . . 1402 51 . . Slashing 1496 | . . . . . . . 1496 Piercing . | . . . . . . . . Highest Corruption 6 | . . . . 2 2 4 6 Average Corruption 2 | . . . . 1 2 3 4 Corruption Purged . | . . . . . . . . Corruption Blocked . | . . . . . . . . Effects 32 | . . . . 6 7 7 12 Message Errors 9 | . . . . 1 1 1 6 Matter Fused 10 | . . . . . 4 5 1 Heat Flow Errors 3 | . . . . 3 . . . Energy Discharges 3 | . . . . 1 . . 2 Data Loss (minor) 3 | . . . . 1 2 . . Data Loss (major) 1 | . . . . . . . 1 Misfires 1 | . . . . . . . 1 Alerts 1 | . . . . . . . 1 Weapon Failures 1 | . . . . . . 1 . Overload Shots 1 | . . . . 1 . . . Overflow Damage 751 | . . . . 504 79 20 148 Projectiles 31 | . . . . . . 20 11 Explosions 119 | . . . . . 38 . 81 Melee 601 | . . . . 504 41 . 56 Knockbacks 16 | . . . . 4 . 5 7 Impact 4 | . . . . 4 . . . Kinetic 12 | . . . . . . 5 7 Secondary . | . . . . . . . . Self-Inflicted Damage 93 | . . 16 . 77 . . . Shots 3 | . . 1 . 2 . . . Rammed . | . . . . . . . . Targets Rammed . | . . . . . . . . Kicked . | . . . . . . . . Crushed . | . . . . . . . . Highest Temperature 402 | 39 402 229 . 229 . 3 35 Average Temperature 94 | 20 133 100 . 104 . 2 16 Received Heat Transfer 1801 | . 132 385 . 477 . 78 729 Effects 3 | . 3 . . . . . . Shutdowns 1 | . 1 . . . . . . Interference 1 | . 1 . . . . . . Matter Decay 1 | . 1 . . . . . . Siege Activations . | . . . . . . . . Martial Activations . | . . . . . . . . Shielding Activations . | . . . . . . . . Robots Disrupted . | . . . . . . . . Combat Hostiles . | . . . . . . . . Robots Corrupted 10 | . . . . 9 1 . . Combat Hostiles 6 | . . . . 5 1 . . Parts Fried 11 | . . . . 11 . . . Impact Corruptions 20 | . . . . 18 2 . . Robots Melted . | . . . . . . . . Combat Hostiles . | . . . . . . . . Parts Melted 7 | 1 2 2 . 1 . . 1 Heat Transferred 2599 | 74 999 1226 . 300 . . . Parts Sabotaged . | . . . . . . . . Parts Stolen . | . . . . . . . . Parts Stripped . | . . . . . . . . Power Chain Reactions 1 | . . . . 1 . . . Alert | -11 -10 -10 -9 -6 -6 -6 -6 ------- Run | Yrd Mat Sub Scr Fac Low Low Zio Maximum Alert Level 3 | . . . . 3 . . . Low Security (%) 55 | 100 100 . . 14 . . . Level 1 14 | . . . . 28 . . . Level 2 24 | . . . . 46 . . . Level 3 5 | . . . . 9 . . . Level 4 . | . . . . . . . . Level 5 . | . . . . . . . . High Security . | . . . . . . . . Max Security . | . . . . . . . . Peak Influence 817 | 5 50 . . 817 . . . Initial 3 | . 3 . . . . . . Average 214 | . 2 . . 411 . . . Influence Increases 1608 | 5 75 . . 1269 30 229 . Destroy 0b10 Robot/C 440 | . 60 . . 180 20 180 . Destroy 0b10 Robot/NC 35 | 5 . . . 30 . . . Destroy Leader 94 | . 10 . . 44 10 30 . Allied During Kill 19 | . . . . . . 19 . Successful Hack 56 | . 4 . . 52 . . . Disable Machine 15 | . . . . 15 . . . Anti-Garrison Action 350 | . . . . 350 . . . Destroy Structure 29 | . 1 . . 28 . . . Lose Combat Pursuer 570 | . . . . 570 . . . Influence Decreases 1608 | . 38 42 . 458 553 275 242 Entered New Map 621 | . 2 21 . . 301 55 242 Time Decay 767 | . 36 21 . 318 222 170 . Search Patrol Dispatched 100 | . . . . 100 . . . Lost Part 80 | . . . . 40 30 10 . Lost Ally 40 | . . . . . . 40 . Squads Dispatched 14 | . 1 . . 13 . . . Investigation 4 | . . . . 4 . . . Extermination 1 | . . . . 1 . . . Reinforcement 4 | . 1 . . 3 . . . Assault 3 | . . . . 3 . . . Garrison 2 | . . . . 2 . . . Intercept . | . . . . . . . . Searches Triggered 1 | . . . . 1 . . . Construction Impeded 1 | . . . . 1 . . . Haulers Reinforced . | . . . . . . . . Active Scanning Responses . | . . . . . . . . Cargo Convoy Interrupts . | . . . . . . . . Stealth | -11 -10 -10 -9 -6 -6 -6 -6 --------- Run | Yrd Mat Sub Scr Fac Low Low Zio Distress Signals 1 | . 1 . . . . . . Communications Jammed . | . . . . . . . . Distress Signals . | . . . . . . . . Times Spotted 116 | . 8 9 . 53 4 10 32 Peak Tracking Total 12 | . 4 2 . 12 3 8 8 Tactical Retreats 14 | . . . . 13 . . 1 ECM-based Alert Blocks 4 | . . . . 4 . . . Traps | -11 -10 -10 -9 -6 -6 -6 -6 ------- Run | Yrd Mat Sub Scr Fac Low Low Zio Traps Triggered 1 | . . . . 1 . . . Indirectly . | . . . . . . . . Trap Hack Attempts . | . . . . . . . . Triggered . | . . . . . . . . Disarmed . | . . . . . . . . Reprogrammed . | . . . . . . . . Reused . | . . . . . . . . Traps Extracted . | . . . . . . . . Installed . | . . . . . . . . Triggered . | . . . . . . . . Machines | -11 -10 -10 -9 -6 -6 -6 -6 ---------- Run | Yrd Mat Sub Scr Fac Low Low Zio Machines Disabled 6 | . . . . 2 . . 4 Max in Single Turn 2 | . . . . 1 . . 2 Garrison Access 2 | . . . . 2 . . . Machines Repaired . | . . . . . . . . Machines Dismantled . | . . . . . . . . Machines Sabotaged . | . . . . . . . . Overloaded Fab Kills . | . . . . . . . . Hacking | -11 -10 -10 -9 -6 -6 -6 -6 --------- Run | Yrd Mat Sub Scr Fac Low Low Zio Machines Accessed 16 | . 3 1 1 10 . . 1 Terminals 7 | . 3 . . 4 . . . Fabricators 1 | . . . . 1 . . . Repair Stations . | . . . . . . . . Recycling Units 2 | . . . . 2 . . . Scanalyzers 1 | . . . . 1 . . . Garrison Access 2 | . . . . 2 . . . Total Hacks 39 | . 9 3 4 19 . . 4 Successful 22 | . 4 3 4 7 . . 4 Failed 17 | . 5 . . 12 . . . Catastrophic 6 | . 2 . . 4 . . . Database Lockouts . | . . . . . . . . Manual 14 | . 9 1 . 4 . . . Terminals 15 | . 9 . . 6 . . . Fabricators 1 | . . . . 1 . . . Repair Stations . | . . . . . . . . Recycling Units 3 | . . . . 3 . . . Scanalyzers 4 | . . . . 4 . . . Garrison Access 5 | . . . . 5 . . . Terminal Hacks 12 | . . 3 4 1 . . 4 Record 7 | . . 3 4 . . . . Part Schematic 4 | . . . . . . . 4 Branch Access Points 1 | . . . . 1 . . . Fabricator Hacks . | . . . . . . . . Repair Station Hacks . | . . . . . . . . Recycling Unit Hacks 2 | . . . . 2 . . . Retrieve Components 2 | . . . . 2 . . . Scanalyzer 3 | . . . . 3 . . . Insert Component 1 | . . . . 1 . . . Retrieve Study 2 | . . . . 2 . . . Garrison Access Hacks . | . . . . . . . . Unauthorized Hacks 5 | . 4 . . 1 . . . Terminals 4 | . 4 . . . . . . Operators 1 | . 1 . . . . . . Skim 3 | . 3 . . . . . . Fabricators . | . . . . . . . . Repair Stations . | . . . . . . . . Recycling Units . | . . . . . . . . Scanalyzers . | . . . . . . . . Garrison Access 1 | . . . . 1 . . . Jam 1 | . . . . 1 . . . Data Cores Recovered 1 | . . . . 1 . . . Used . | . . . . . . . . Hacking Detections 12 | . 3 . . 9 . . . Full Trace Events 3 | . . . . 3 . . . Feedback Events 1 | . . . . 1 . . . Corruption 1 | . . . . 1 . . . Feedback Blocked . | . . . . . . . . Robot Schematics Acquired 3 | . . . . . . . 3 Robots Built . | . . . . . . . . Authchips . | . . . . . . . . Time . | . . . . . . . . Total Robot Build Rating . | . . . . . . . . Part Schematics Acquired 20 | . . . . . . . 20 Parts Built . | . . . . . . . . Authchips . | . . . . . . . . Time . | . . . . . . . . Total Part Build Rating . | . . . . . . . . Part Studies Acquired 2 | . . . . 2 . . . Parts Repaired . | . . . . . . . . Time . | . . . . . . . . Parts Recycled . | . . . . . . . . Recycled Matter . | . . . . . . . . Retrieved Matter . | . . . . . . . . Retrieved Components 4 | . . . . 4 . . . Parts Scanalyzed . | . . . . . . . . Part Schematics Acquired . | . . . . . . . . Parts Damaged . | . . . . . . . . Bothacking | -11 -10 -10 -9 -6 -6 -6 -6 ------------ Run | Yrd Mat Sub Scr Fac Low Low Zio Used RIF Installer . | . . . . . . . . Robots Hacked . | . . . . . . . . Non-combat . | . . . . . . . . Combat . | . . . . . . . . Robot Hacks Applied . | . . . . . . . . Relay Couplers Released 1 | . . . . 1 . . . Machine Destruction 1 | . . . . 1 . . . Fabnet Peak Effective % . | . . . . . . . . Robots Rewired 2 | . . . . . 2 . . Allies Hacked . | . . . . . . . . Hacks Repelled . | . . . . . . . . Allies | -11 -10 -10 -9 -6 -6 -6 -6 -------- Run | Yrd Mat Sub Scr Fac Low Low Zio Total Allies 2 | . . . . . 2 . . Largest Group 2 | . . . . . 2 2 . Highest-Rated Group 56 | . . . . . 56 56 . Highest-Rated Ally 31 | . . . . . 31 31 . Initial UFD Resources 24 | . . . . 24 24 24 24 Total Orders 2 | . . . . 2 . . . EXPLORE 1 | . . . . 1 . . . RETURN 1 | . . . . 1 . . . Ally Attacks 9 | . . . . . . 9 . Total Damage 171 | . . . . . . 171 . Kills 2 | . . . . . . 2 . Allies Corrupted . | . . . . . . . . Allies Melted . | . . . . . . . . Intel | -11 -10 -10 -9 -6 -6 -6 -6 ------- Run | Yrd Mat Sub Scr Fac Low Low Zio Active Infowar (turns) 1988 | . 522 . 342 627 205 . 292 Optics 292 | . . . . . . . 292 Traps 4 | . . . . 4 . . . Seismic 1696 | . 522 . 342 627 205 . . Cloaking 712 | . . . . 511 201 . . ECM 34 | . . . . 34 . . . Robot Analysis Total . | . . . . . . . . Derelict Logs Recovered 9 | . . 1 3 . 2 1 2 Drone Launches 2 | . . . . 2 . . . Drone Recoveries 2 | . . . . 2 . . . Exploration | -11 -10 -10 -9 -6 -6 -6 -6 ------------- Run | Yrd Mat Sub Scr Fac Low Low Zio Turns Passed 5321 | 57 610 818 811 717 477 355 1476 Spaces Moved 4750 | 27 209 414 1306 938 496 312 1048 Core 160 | 14 . . 40 104 . . 2 Treads 553 | 13 209 320 . . . . 11 Legs 64 | . . . . . . . 64 Wheels 655 | . . 94 423 . . . 138 Hover 2282 | . . . . 641 496 312 833 Flight 1036 | . . . 843 193 . . . Fastest Speed 34 | 50 160 110 34 34 52 52 106 Average Speed 85 | 165 160 148 60 50 52 97 117 Slowest Speed 600 | 200 160 160 115 110 52 106 600 Overloaded Moves . | . . . . . . . . Propulsion Burnouts . | . . . . . . . . Robots Hopped . | . . . . . . . . Potential Cave-ins . | . . . . . . . . Cave-ins Triggered . | . . . . . . . . Exploration Rate (%) 48 | 3 40 27 88 26 63 49 89 Regions Visited 7 Branch Regions 5 Pre-discovered Areas 5 | . . 1 1 . 1 . 2 Known Exits Taken 1 | . . . . 1 . . . Unknown Exits Taken 6 | 1 1 1 1 . 1 1 . Scrap Searched 10 | . . . 3 . 3 1 3 Spaces Dug 31 | . . . . 24 7 . . Terrain Destroyed 271 | . . 12 . 35 115 65 44 Melee 5 | . . . . 4 1 . . Projectile 33 | . . . . 23 7 1 2 AOE 233 | . . 12 . 8 107 64 42 Terrain Rammed . | . . . . . . . . Walls Destroyed . | . . . . . . . . Machines Disabled . | . . . . . . . . Actions | -11 -10 -10 -9 -6 -6 -6 -6 --------- Run | Yrd Mat Sub Scr Fac Low Low Zio Total 5629 | 34 447 522 1326 1081 686 343 1190 Wait 416 | . 213 19 5 28 139 9 3 Move 4743 | 26 208 413 1305 937 495 311 1048 Hop . | . . . . . . . . Pick Up 43 | 1 5 10 3 8 4 1 11 Fast Attach 50 | 6 1 2 2 17 2 1 19 Attach 21 | . . 8 1 5 1 . 6 Detach 3 | . . . . 3 . . . Swap 12 | . . 2 . 1 3 4 2 Drop 31 | . 1 3 10 10 1 . 6 Fire 216 | 1 19 65 . 33 20 17 61 Melee 75 | . . . . 39 2 . 34 Ram . | . . . . . . . . Kick . | . . . . . . . . Crush . | . . . . . . . . Escape Stasis . | . . . . . . . . Rewire 19 | . . . . . 19 . . Trap . | . . . . . . . . Miscellaneous . | . . . . . . . . Route ------- -11/Scrapyard -10/Materials (discovered 3 exits: [*Mat] / [*Min] / *Sub) -10/Subcaves -9/Scraptown (discovered 2 exits: *Fac x2) -6/Factory (discovered 3 exits: *Fac / *Low x2) -6/Lower Caves -6/Lower Caves (discovered 2 exits: *Fac / *Zio) -6/Zion (discovered 1 exit: [*Pro]) History --------- Turn | Location | Event 26 | -11/Scrapyard | Discovered new exit (range 15) 58 | -11/Scrapyard | Entered Materials 309 | -10/Materials | Build established: Mutant 402 | -10/Materials | Discovered new exit (range 7) 406 | -10/Materials | Discovered new exit (range 9) 616 | -10/Materials | Discovered new exit (range 10) 668 | -10/Materials | Entered Subcaves 669 | -10/Subcaves | Approached by a straggling Scientist 745 | -10/Subcaves | Visited Clippyterm 750 | -10/Subcaves | Learned location of Deep Caves (-6) 1109 | -10/Subcaves | Ambushed by Subdweller buried in earth 1217 | -10/Subcaves | Core integrity fell below 50% 1249 | -10/Subcaves | Lost 3 parts (1p1u1w) 1287 | -10/Subcaves | Core integrity fell below 20% 1345 | -10/Subcaves | Lost 5 parts (1p2n2w) 1486 | -10/Subcaves | Entered Scraptown 1487 | -9/Scraptown | Build established: Scavenger-Mutant 1676 | -9/Scraptown | Scanned Subdweller tech in exchange for log data 1679 | -9/Scraptown | Learned Research security intel 1680 | -9/Scraptown | Learned location of Testing (-2) 1681 | -9/Scraptown | Learned Factory non-interactive machine intel 1706 | -9/Scraptown | Visited Comm Corps 1741 | -9/Scraptown | Visited TADAMA 1747 | -9/Scraptown | Visited Assassins FH 1761 | -9/Scraptown | Visited Spacefarers 1887 | -9/Scraptown | Heard Great Nut preacher, LISTEN AND RECITE! 1926 | -9/Scraptown | Visited Shadow of the Wyrm 1947 | -9/Scraptown | Visited Cave Peace 2054 | -9/Scraptown | Visited Awakened 2060 | -9/Scraptown | Visited UFD Registry 2060 | -9/Scraptown | Registered with UFD as "Cogshell" 2076 | -9/Scraptown | Discovered new exit (range 13) 2113 | -9/Scraptown | Visited Abandonware Association 2117 | -9/Scraptown | Learned abandonware demo "HACKBUD.EXE" 2117 | -9/Scraptown | Learned abandonware demo "REPAIR.EXE" 2125 | -9/Scraptown | Visited Chapter 10 2165 | -9/Scraptown | Visited Research Penetration Think Tank 2174 | -9/Scraptown | Visited Supply Room 2183 | -9/Scraptown | Visited Curators Association 2222 | -9/Scraptown | Visited LU-1G1's Boring Crew 2233 | -9/Scraptown | Visited Observation Area 2246 | -9/Scraptown | Visited Infowarlord's Domain 2249 | -9/Scraptown | Found Exp. Terrain Scan Processor 2251 | -9/Scraptown | Build established: Mutant 2278 | -9/Scraptown | Met Optimus 2278 | -9/Scraptown | Accepted into 0bPrime 2296 | -9/Scraptown | Discovered new exit (range 3) 2297 | -9/Scraptown | Entered Factory 2297 | -6/Factory | Evolved 8 slots: Propulsion x3, Utility x5 2298 | -6/Factory | Loaded intel: 220 non-interactive machine locations 2405 | -6/Factory | Lost 3 parts (1p2n) 2428 | -6/Factory | Discovered new exit (range 15) 2435 | -6/Factory | Identified exit to Factory 2647 | -6/Factory | Search patrols dispatched 2907 | -6/Factory | Spotted B-75 Beast 2948 | -6/Factory | Garrison activated, responded to threat 2973 | -6/Factory | Core integrity fell below 50% 2993 | -6/Factory | Identified exit to Lower Caves 2997 | -6/Factory | First assault squad dispatched 3014 | -6/Factory | Entered Lower Caves 3048 | -6/Lower Caves | Learned location of Extension (-5) 3083 | -6/Lower Caves | Encountered a Warlord checkpoint 3284 | -6/Lower Caves | Attacked by a faux Warlord 3376 | -6/Lower Caves | Learned Factory emergency access door positions 3469 | -6/Lower Caves | Discovered new exit (range 7) 3491 | -6/Lower Caves | Entered another Lower Caves area 3491 | -6/Lower Caves | Accompanied by 2 allies 3493 | -6/Lower Caves | Discovered exit to Factory (range 12) 3676 | -6/Lower Caves | Learned location of 1 exit from Factory 3829 | -6/Lower Caves | Discovered new exit (range 4) 3846 | -6/Lower Caves | Attracted the attention of an 0b10 checkpoint 3846 | -6/Lower Caves | Entered Zion 3867 | -6/Zion | Learned location of Warlord (-4) 3892 | -6/Zion | Learned location of 1 exit from Factory 3905 | -6/Zion | Given the Hacking Drone Bay 3905 | -6/Zion | Found Prototype Device 3924 | -6/Zion | System corruption cleaned by Quarantine Array 4025 | -6/Zion | Discovered new exit (range 9) 4204 | -6/Zion | Learned location of Quarantine (-3) 4297 | -6/Zion | Learned Factory interactive machine intel 4320 | -6/Zion | Found Prototype Device 4367 | -6/Zion | Turned away by Imprinter 4455 | -6/Zion | Build established: Derelict-Mutant 4524 | -6/Zion | Learned Factory repair station intel 4682 | -6/Zion | Found Prototype Special Weapon 4685 | -6/Zion | Found Prototype Special Weapon 4688 | -6/Zion | Found Prototype Special Weapon 4690 | -6/Zion | Found Prototype Special Weapon 4833 | -6/Zion | Attempted to imprint without authorization 4833 | -6/Zion | Attacked by Zionites 4882 | -6/Zion | Core integrity fell below 20% 4884 | -6/Zion | Identified RU-N14's Throwing Claymores (x4) 4921 | -6/Zion | Lost 9 parts (1p3n4u1w) 5168 | -6/Zion | Lost 4 parts (3n1w) 5204 | -6/Zion | CL-ANK came to Zion's defense 5280 | -6/Zion | Build established: Scavenger-Mutant 5322 | -6/Zion | Destroyed by 69-Q0P(z) with Makeshift Axe Last Messages --------------- 05301_ 1K-SAE(c) destroyed. 05304_ Critical hit (Burn: +37). 05306_ IP-22B(z) destroyed. 05306_ Mak. Leg destroyed. 05308_ Acquired 16 matter. 05310_ 69-Q0P(z) heat damages Mak. Power Source. 05310_ 69-Q0P(z) pulls a Mak. Axe out of the Twisted Machinery. 05310_ 69-Q0P(z) overheating. 05312_ Lrg. Storage Unit destroyed. 05312_ 0G-O50(z) destroyed. 05312_ 69-Q0P(z) overheating. 05316_ 69-Q0P(z) heat damages Mak. Power Source, Mak. Axe, Mak. Laser. 05316_ 69-Q0P(z) overheating. 05319_ XM-E77(z) pulls a Mak. Spear out of the Twisted Machinery. 05320_ Destroyed EM Shield. 05320_ YH-FSS(z) destroyed. 05321_ V0X5HI%QA|24TNF